bitfinex/quotes_BTCUSD_20241107
["timestamp","ask_amount","ask_price","bid_price","bid_amount"]
[1730995606935,0.1,75863.0,75852.0,0.07766]
[1730995607146,0.13346508,75862.0,75852.0,0.07766]
[1730995607362,0.1,75855.0,75850.0,0.0463]
[1730995607564,0.1,75853.0,75850.0,0.0463]
[1730995607768,0.13346508,75852.0,75850.0,0.0463]
[1730995607969,0.23346508,75852.0,75849.0,0.01649]
[1730995608179,0.23346508,75852.0,75849.0,0.00689]
[1730995608389,0.1,75851.0,75849.0,0.00689]
[1730995608611,0.23346508,75850.0,75849.0,0.00689]
[1730995608816,0.2736054,75850.0,75849.0,0.00689]
[1730995609227,0.24575266,75850.0,75849.0,0.00689]
[1730995609854,0.01351164,75850.0,75849.0,0.00689]
[1730995610272,0.00122406,75850.0,75849.0,0.00689]
[1730995610477,0.04019314,75850.0,75849.0,0.00689]
[1730995611085,0.09936916,75850.0,75849.0,0.00689]
[1730995611262,0.19936916,75850.0,75849.0,0.00689]
[1730995611468,0.37743416,75850.0,75849.0,0.00689]
[1730995611664,0.37243416,75850.0,75849.0,0.00689]
[1730995611893,0.37743416,75850.0,75849.0,0.00689]
[1730995612629,0.24519314,75850.0,75849.0,0.00689]
[1730995612830,0.23818215,75850.0,75849.0,0.01189]
[1730995613053,0.23818215,75850.0,75849.0,0.012725]
[1730995613278,0.24141692,75850.0,75849.0,0.012725]
[1730995613644,0.24641692,75850.0,75849.0,0.012725]
[1730995613841,0.13695809,75850.0,75849.0,0.143825]
[1730995614038,0.11229157,75850.0,75849.0,0.138825]
[1730995614243,0.13294045,75850.0,75849.0,0.138825]
[1730995614467,0.13890766,75850.0,75849.0,0.138825]
[1730995614920,0.14214213,75850.0,75849.0,0.128825]
[1730995615107,0.24214213,75850.0,75849.0,0.133825]
[1730995615333,0.24214213,75850.0,75849.0,0.138825]
[1730995615523,0.24314213,75850.0,75849.0,0.138825]
[1730995615821,0.24214213,75850.0,75849.0,0.133825]
[1730995616021,0.24214213,75850.0,75849.0,0.138825]
[1730995616761,0.24336619,75850.0,75849.0,0.138825]
[1730995617172,0.24336619,75850.0,75849.0,0.134825]
[1730995617375,0.24436619,75850.0,75849.0,0.133825]
[1730995617841,0.24336619,75850.0,75849.0,0.138825]
[1730995618072,0.24836619,75850.0,75849.0,0.138825]
[1730995618288,0.2688335,75850.0,75849.0,0.138825]
[1730995618519,0.2688335,75850.0,75849.0,0.017725]
[1730995618750,0.38060721,75850.0,75849.0,0.007725]
[1730995618976,0.37938315,75850.0,75849.0,0.007725]
[1730995619200,0.39165048,75850.0,75849.0,0.007725]
[1730995619707,0.25940946,75850.0,75849.0,0.012725]
[1730995619956,0.01080766,75850.0,75849.0,0.27826602]
[1730995620203,0.01080766,75850.0,75849.0,0.141025]
[1730995620467,0.005,75850.0,75849.0,0.141025]
[1730995620685,0.00122406,75861.0,75851.0,0.005]
[1730995620959,0.00122406,75861.0,75849.0,0.141025]
[1730995621196,0.001,75850.0,75849.0,0.142025]
[1730995621443,0.002,75850.0,75849.0,0.143025]
[1730995621709,0.001,75850.0,75849.0,0.137025]
[1730995621926,0.001,75850.0,75849.0,0.142025]
[1730995622375,0.001,75850.0,75849.0,0.137025]
[1730995622603,0.001,75850.0,75849.0,0.141025]
[1730995622834,0.00122406,75855.0,75851.0,0.005]
[1730995623094,0.005,75852.0,75851.0,0.005]
[1730995623302,0.02673761,75852.0,75851.0,0.005]
[1730995623573,0.02674365,75852.0,75850.0,0.005]
[1730995623857,0.02051959,75851.0,75850.0,0.005]
[1730995624035,0.05311595,75862.0,75861.0,0.005]
[1730995624241,0.02047595,75866.0,75862.0,0.005]
[1730995624424,0.20310218,75870.0,75862.0,0.0816]
[1730995624425,0.04018991,75865.0,75862.0,0.0816]
[1730995624653,0.19810218,75870.0,75862.0,0.0816]
[1730995624654,0.04018991,75864.0,75862.0,0.0816]
[1730995624875,0.01229096,75863.0,75862.0,0.005]
[1730995625093,0.02052436,75863.0,75862.0,0.005]
[1730995625368,0.0402013,75863.0,75862.0,0.005]
[1730995626001,0.0402013,75863.0,75861.0,0.005]
[1730995626206,0.00122406,75864.0,75862.0,0.005]
[1730995626419,0.1,75865.0,75863.0,0.005]
[1730995626643,0.04023171,75864.0,75863.0,0.005]
[1730995627066,0.04523171,75864.0,75863.0,0.005]
[1730995627280,0.05507738,75864.0,75863.0,0.005]
[1730995627486,0.06907738,75864.0,75863.0,0.005]
[1730995627933,0.2035238,75864.0,75863.0,0.005]
[1730995628139,0.2035238,75864.0,75849.0,0.047035]
[1730995628140,0.005,75850.0,75849.0,0.000835]
[1730995628356,0.2873184,75850.0,75849.0,0.000835]
[1730995628788,0.28854246,75850.0,75849.0,0.000835]
[1730995629654,0.05130144,75850.0,75849.0,0.000835]
[1730995629872,0.37942506,75850.0,75849.0,0.000835]
[1730995630101,0.42182827,75850.0,75849.0,0.001835]
[1730995630347,0.42182827,75850.0,75828.0,0.19959218]
[1730995630348,0.1,75849.0,75828.0,0.19959218]
[1730995630558,0.005,75832.0,75828.0,0.00149]
[1730995630771,0.30703711,75832.0,75828.0,0.00149]
[1730995630981,0.30703711,75832.0,75828.0,0.00649]
[1730995631198,0.30703711,75832.0,75829.0,0.005]
[1730995631397,0.27749174,75832.0,75828.0,0.00149]
[1730995631620,0.27749174,75832.0,75831.0,0.0054]
[1730995631621,0.2737158,75832.0,75831.0,0.0054]
[1730995632044,0.05377899,75832.0,75831.0,0.0004]
[1730995632249,0.05077899,75832.0,75831.0,0.0054]
[1730995632965,0.04955493,75832.0,75831.0,0.0054]
[1730995633180,0.00622406,75836.0,75831.0,0.0054]
[1730995633395,0.01968003,75832.0,75831.0,0.0054]
[1730995633601,0.01352408,75832.0,75831.0,0.0054]
[1730995633815,0.0414412,75832.0,75831.0,0.0054]
[1730995634027,0.03619865,75832.0,75831.0,0.0054]
[1730995634243,0.33194242,75832.0,75831.0,0.0004]
[1730995634455,0.36928047,75832.0,75831.0,0.0004]
[1730995634672,0.42033756,75832.0,75831.0,0.0004]
[1730995634880,0.39984567,75832.0,75831.0,0.0004]
[1730995635089,0.34253908,75832.0,75831.0,0.0004]
[1730995635304,0.34329118,75832.0,75831.0,0.0004]
[1730995635514,0.29145388,75832.0,75831.0,0.0004]
[1730995635933,0.05421286,75832.0,75831.0,0.0004]
[1730995636384,0.05997459,75832.0,75831.0,0.0054]
[1730995636593,0.028,75832.0,75831.0,0.0054]
[1730995636804,0.014,75832.0,75831.0,0.0054]
[1730995637030,0.028,75832.0,75831.0,0.006235]
[1730995637240,0.01228286,75832.0,75831.0,0.006235]
[1730995637452,0.00122406,75835.0,75834.0,0.005]
[1730995637667,0.13346508,75835.0,75834.0,0.005]
[1730995637876,0.15074968,75835.0,75834.0,0.005]
[1730995638495,0.27040746,75835.0,75834.0,0.005]
[1730995638746,0.01,75832.0,75831.0,0.001235]
[1730995638944,0.00622406,75832.0,75831.0,0.001235]
[1730995639156,0.25075038,75832.0,75831.0,0.001235]
[1730995639773,0.23846508,75832.0,75831.0,0.001235]
[1730995640001,0.25275039,75832.0,75831.0,0.001235]
[1730995640220,0.25075039,75832.0,75831.0,0.001235]
[1730995640691,0.27140848,75832.0,75831.0,0.001235]
[1730995640896,0.25175039,75832.0,75831.0,0.001235]
[1730995641312,0.30572455,75832.0,75831.0,0.001235]
[1730995641491,0.30450049,75832.0,75831.0,0.001235]
[1730995641726,0.34587119,75832.0,75831.0,0.001235]
[1730995641930,0.31150049,75832.0,75831.0,0.001235]
[1730995642346,0.33015794,75832.0,75831.0,0.001235]
[1730995642554,0.33215794,75832.0,75831.0,0.001235]
[1730995643229,0.34039492,75832.0,75831.0,0.001235]
[1730995643452,0.34039426,75832.0,75831.0,0.001235]
[1730995643662,0.33215606,75832.0,75831.0,0.001235]
[1730995643890,0.34039414,75832.0,75831.0,0.001235]
[1730995644072,0.35267788,75832.0,75831.0,0.001235]
[1730995644507,0.36750545,75832.0,75831.0,0.001235]
[1730995644711,0.40763259,75832.0,75831.0,0.001235]
[1730995645210,0.56101653,75832.0,75831.0,0.001235]
[1730995645635,0.64237294,75832.0,75831.0,0.001235]
[1730995645838,0.65085467,75832.0,75831.0,0.001235]
[1730995646046,0.56949826,75832.0,75831.0,0.001235]
[1730995646258,0.5842594,75832.0,75831.0,0.001235]
[1730995646466,0.55232395,75832.0,75831.0,0.001235]
[1730995646679,0.5924917,75832.0,75831.0,0.001235]
[1730995646905,0.5694917,75832.0,75831.0,0.001235]
[1730995647122,0.56125191,75832.0,75831.0,0.001235]
[1730995647326,0.55425191,75832.0,75831.0,0.000735]
[1730995647741,0.56125191,75832.0,75831.0,0.000735]
[1730995648198,0.55425191,75832.0,75831.0,0.000735]
[1730995648403,0.55225191,75832.0,75831.0,0.000735]
[1730995648608,0.69408289,75832.0,75831.0,0.000735]
[1730995648822,0.005,75812.0,75811.0,0.0204]
[1730995649028,0.26918268,75812.0,75811.0,0.0204]
[1730995649253,0.27116269,75812.0,75811.0,0.0204]
[1730995649486,0.28440242,75812.0,75811.0,0.0204]
[1730995649691,0.28062648,75812.0,75811.0,0.0204]
[1730995649902,0.24044509,75812.0,75811.0,0.0204]
[1730995650113,0.26831422,75812.0,75811.0,0.0204]
[1730995650331,0.36549632,75812.0,75811.0,0.0204]
[1730995650540,0.35927226,75812.0,75811.0,0.0204]
[1730995650979,0.37327226,75812.0,75811.0,0.0204]
[1730995651185,0.36100414,75812.0,75811.0,0.0204]
[1730995651387,0.34700414,75812.0,75811.0,0.0204]
[1730995651616,0.30686689,75812.0,75811.0,0.0204]
[1730995651829,0.35275634,75812.0,75811.0,0.0204]
[1730995652923,0.04224518,75812.0,75811.0,0.0254]
[1730995653132,0.02998001,75812.0,75811.0,0.0254]
[1730995653347,0.16844509,75812.0,75811.0,0.0254]
[1730995654000,0.16844509,75812.0,75811.0,0.0204]
[1730995654214,0.005,75796.0,75795.0,0.001492]
[1730995654434,0.26913502,75796.0,75795.0,0.001492]
[1730995656212,0.27937712,75796.0,75795.0,0.001492]
[1730995656423,0.29164912,75796.0,75795.0,0.001492]
[1730995656631,0.23924102,75796.0,75795.0,0.001492]
[1730995656838,0.28061321,75796.0,75795.0,0.001492]
[1730995657049,0.29288503,75796.0,75795.0,0.001492]
[1730995657252,0.29666097,75796.0,75795.0,0.001492]
[1730995657460,0.27938915,75796.0,75795.0,0.001492]
[1730995657662,0.34064146,75796.0,75795.0,0.001492]
[1730995657868,0.3311752,75796.0,75795.0,0.001492]
[1730995658283,0.36429272,75796.0,75795.0,0.001492]
[1730995658499,0.37253457,75796.0,75795.0,0.001492]
[1730995658708,0.53819489,75796.0,75795.0,0.001492]
[1730995658900,0.35169175,75796.0,75795.0,0.001492]
[1730995659112,0.33941705,75796.0,75795.0,0.001492]
[1730995660160,0.50280267,75796.0,75795.0,0.001492]
[1730995660369,0.50507961,75796.0,75795.0,0.001492]
[1730995660589,0.36151555,75796.0,75795.0,0.001492]
[1730995660801,0.36151555,75796.0,75795.0,0.122492]
[1730995660802,0.09393418,75796.0,75795.0,0.122492]
[1730995661026,0.09393418,75796.0,75795.0,0.127492]
[1730995661027,0.02027151,75796.0,75795.0,0.127492]
[1730995661241,0.002,75796.0,75795.0,0.127492]
[1730995661453,0.016,75796.0,75795.0,0.127492]
[1730995661660,0.014,75796.0,75795.0,0.127492]
[1730995662071,0.028,75796.0,75795.0,0.127492]
[1730995662314,0.014,75796.0,75795.0,0.127492]
[1730995662524,0.16351519,75796.0,75795.0,0.001492]
[1730995662740,0.20063377,75796.0,75795.0,0.001492]
[1730995662961,0.3046743,75796.0,75795.0,0.001492]
[1730995663172,0.30467399,75796.0,75795.0,0.001492]
[1730995663384,0.28967454,75796.0,75795.0,0.001492]
[1730995663631,0.23724102,75796.0,75795.0,0.001492]
[1730995663841,0.37516874,75796.0,75795.0,0.001492]
[1730995664062,0.37394468,75796.0,75795.0,0.001492]
[1730995664268,0.38840415,75796.0,75795.0,0.001492]
[1730995664477,0.40240415,75796.0,75795.0,0.001492]
[1730995664911,0.36794468,75796.0,75795.0,0.001492]
[1730995665113,0.35394468,75796.0,75795.0,0.001492]
[1730995665334,0.36794468,75796.0,75795.0,0.001492]
[1730995665570,0.3875761,75796.0,75795.0,0.001492]
[1730995665801,0.05991677,75796.0,75795.0,0.131292]
[1730995666018,0.028,75796.0,75795.0,0.131292]
[1730995666209,0.014,75796.0,75795.0,0.131292]
[1730995666980,0.014,75796.0,75795.0,0.130792]
[1730995667460,4e-05,75800.0,75795.0,0.130792]
[1730995667701,4e-05,75800.0,75799.0,0.005]
[1730995669053,0.005,75796.0,75795.0,0.000992]
[1730995669282,0.2507466,75796.0,75795.0,0.000992]
[1730995669530,0.2507466,75796.0,75795.0,0.005992]
[1730995669759,0.2507466,75796.0,75795.0,0.000992]
[1730995669965,0.2507466,75796.0,75795.0,0.001992]
[1730995670403,0.27141331,75796.0,75795.0,0.006992]
[1730995670636,0.47649197,75796.0,75795.0,0.001992]
[1730995670844,0.51883543,75796.0,75795.0,0.002992]
[1730995671050,0.51801588,75796.0,75795.0,0.002992]
[1730995671223,0.53375313,75796.0,75795.0,0.002992]
[1730995671374,0.53375313,75796.0,75795.0,0.001992]
[1730995671583,0.48193722,75796.0,75795.0,0.000992]
[1730995671788,0.43493722,75796.0,75795.0,0.000992]
[1730995671986,0.41526657,75796.0,75795.0,0.000992]
[1730995672212,0.43576061,75796.0,75795.0,0.000992]
[1730995672413,0.42026657,75796.0,75795.0,0.000992]
[1730995672767,0.45069257,75796.0,75795.0,0.000992]
[1730995672943,0.40126657,75796.0,75795.0,0.000992]
[1730995673091,0.39143128,75796.0,75795.0,0.000992]
[1730995673299,0.40543128,75796.0,75795.0,0.000992]
[1730995673501,0.29218925,75796.0,75795.0,0.005992]
[1730995673701,0.27252254,75796.0,75795.0,0.005992]
[1730995673909,0.128,75796.0,75795.0,0.005992]
[1730995674251,0.128,75796.0,75795.0,0.051092]
[1730995674439,0.114,75796.0,75795.0,0.051092]
[1730995674640,0.114,75796.0,75795.0,0.134292]
[1730995675242,0.115,75796.0,75795.0,0.134292]
[1730995675452,0.114,75796.0,75795.0,0.051092]
[1730995675796,0.1,75796.0,75795.0,0.051092]
[1730995677309,0.101,75796.0,75795.0,0.051092]
[1730995677494,0.11230751,75796.0,75795.0,0.051092]
[1730995677938,0.102,75796.0,75795.0,0.051092]
[1730995678144,0.11430764,75796.0,75795.0,0.051092]
[1730995678357,0.11430764,75796.0,75795.0,0.052092]
[1730995678569,0.11434764,75796.0,75795.0,0.051092]
[1730995678771,0.10204,75796.0,75795.0,0.051092]
[1730995678978,0.10204,75796.0,75795.0,0.052092]
[1730995679185,0.10004,75796.0,75795.0,0.051092]
[1730995679406,0.10104,75796.0,75795.0,0.051092]
[1730995679617,0.10104,75796.0,75795.0,0.054092]
[1730995679823,0.10104,75796.0,75795.0,0.133692]
[1730995680035,0.10004,75796.0,75795.0,0.133692]
[1730995680252,0.10204,75796.0,75795.0,0.27093302]
[1730995680701,0.10204,75796.0,75795.0,0.136692]
[1730995680908,0.10204,75796.0,75795.0,0.138692]
[1730995680909,0.10004,75796.0,75795.0,0.138692]
[1730995681115,0.10004,75796.0,75795.0,0.142692]
[1730995681366,0.10004,75796.0,75795.0,0.27493302]
[1730995681577,0.10004,75796.0,75795.0,0.49735503]
[1730995681802,0.10004,75796.0,75795.0,0.50035503]
[1730995682028,0.10104,75796.0,75795.0,0.50035503]
[1730995682257,0.10004,75796.0,75795.0,0.53486109]
[1730995682477,0.10104,75796.0,75795.0,0.53686109]
[1730995682701,0.10204,75796.0,75795.0,0.53686109]
[1730995682927,0.05204,75796.0,75795.0,0.49435503]
[1730995683144,4e-05,75800.0,75799.0,0.017]
[1730995683351,4e-05,75800.0,75799.0,0.14924102]
[1730995683566,4e-05,75800.0,75799.0,0.015]
[1730995683986,4e-05,75800.0,75799.0,0.017]
[1730995684229,4e-05,75800.0,75795.0,0.049927]
[1730995684462,0.00171,75800.0,75799.0,0.005]
[1730995685292,0.00271,75800.0,75799.0,0.017]
[1730995685699,0.00271,75800.0,75799.0,0.005]
[1730995685700,0.00171,75800.0,75799.0,0.005]
[1730995685902,0.00271,75800.0,75799.0,0.016]
[1730995686111,0.00371,75800.0,75799.0,0.023]
[1730995686316,0.00271,75800.0,75799.0,0.012]
[1730995686734,0.00171,75800.0,75799.0,0.005]
[1730995686940,0.00171,75800.0,75799.0,0.011]
[1730995687145,0.00271,75800.0,75799.0,0.011]
[1730995687780,0.00371,75800.0,75799.0,0.023]
[1730995687998,0.00271,75800.0,75799.0,0.011]
[1730995688226,0.00275,75800.0,75799.0,0.011]
[1730995688649,0.00275,75800.0,75799.0,0.01]
[1730995688880,0.00375,75800.0,75799.0,0.39066303]
[1730995689546,0.00275,75800.0,75799.0,0.38466303]
[1730995689962,0.00275,75800.0,75799.0,0.15424102]
[1730995690396,0.00275,75800.0,75799.0,0.15924102]
[1730995690615,0.00175,75800.0,75799.0,0.20128952]
[1730995690823,0.00175,75800.0,75799.0,0.20628952]
[1730995691500,0.00275,75800.0,75799.0,0.37081382]
[1730995691705,0.00175,75800.0,75799.0,0.35981382]
[1730995692133,0.00275,75800.0,75799.0,0.37081382]
[1730995692345,0.00275,75800.0,75799.0,0.41441382]
[1730995692976,0.00375,75800.0,75799.0,0.42041382]
[1730995693811,0.00175,75800.0,75799.0,0.40341382]
[1730995694304,0.00175,75800.0,75799.0,0.49371382]
[1730995694527,0.00175,75800.0,75799.0,0.47971382]
[1730995694736,0.00175,75800.0,75799.0,0.54418981]
[1730995694737,0.00275,75800.0,75799.0,0.54418981]
[1730995695197,0.00275,75800.0,75799.0,0.53018981]
[1730995695403,0.00275,75800.0,75799.0,0.54418981]
[1730995695855,0.00275,75800.0,75799.0,0.53018981]
[1730995696096,0.00275,75800.0,75799.0,0.49271382]
[1730995696603,0.00275,75800.0,75799.0,0.44411382]
[1730995697070,0.00175,75800.0,75799.0,0.43111382]
[1730995697518,0.00175,75800.0,75799.0,0.44511382]
[1730995697724,0.00275,75800.0,75799.0,0.44411382]
[1730995698137,0.00175,75800.0,75799.0,0.44511382]
[1730995698365,0.00175,75800.0,75799.0,0.43111382]
[1730995698608,0.00275,75800.0,75799.0,0.44411382]
[1730995698805,0.00275,75800.0,75799.0,0.3098728]
[1730995698957,0.00275,75800.0,75799.0,0.2998728]
[1730995699161,0.18104525,75813.0,75812.0,0.004]
[1730995699785,0.005,75816.0,75812.0,0.004]
[1730995699983,0.1,75821.0,75816.0,0.004]
[1730995700140,0.005,75831.0,75814.0,0.1535243]
[1730995700353,0.0026632,75828.0,75821.0,0.1535243]
[1730995700565,0.0026632,75828.0,75814.0,0.1535243]
[1730995700817,0.05405783,75828.0,75827.0,0.004]
[1730995701050,0.00167,75828.0,75827.0,0.004]
[1730995701682,0.00267,75828.0,75827.0,0.004]
[1730995702220,0.05592507,75828.0,75827.0,0.004]
[1730995702433,0.05592507,75828.0,75827.0,0.006]
[1730995702637,0.00267,75828.0,75827.0,0.006]
[1730995702815,0.00167,75828.0,75827.0,0.006]
[1730995703148,0.00367,75828.0,75827.0,0.006]
[1730995703567,0.00167,75828.0,75827.0,0.004]
[1730995703974,0.00367,75828.0,75827.0,0.006]
[1730995704388,0.00367,75828.0,75827.0,0.004]
[1730995705170,0.1,75827.0,75826.0,0.004]
[1730995706246,0.00167,75828.0,75827.0,0.004]
[1730995707383,0.00367,75828.0,75827.0,0.004]
[1730995707795,0.00367,75828.0,75827.0,0.006]
[1730995708254,0.00367,75828.0,75827.0,0.0824]
[1730995709364,0.00367,75828.0,75827.0,0.006]
[1730995710604,0.00367,75828.0,75827.0,0.0878]
[1730995714205,0.13442036,75837.0,75836.0,0.004]
[1730995714910,0.03442036,75837.0,75836.0,0.083]
[1730995715317,0.005,75843.0,75842.0,0.004]
[1730995716312,0.05770095,75843.0,75842.0,0.004]
[1730995716515,0.005,75843.0,75842.0,0.004]
[1730995718269,0.006,75843.0,75842.0,0.007]
[1730995719635,0.05967718,75843.0,75842.0,0.003]
[1730995719906,0.15967718,75843.0,75842.0,0.003]
[1730995720138,0.106,75843.0,75842.0,0.003]
[1730995720841,0.23824102,75843.0,75842.0,0.003]
[1730995721305,0.3724327,75843.0,75842.0,0.003]
[1730995721493,0.24019168,75843.0,75842.0,0.003]
[1730995721818,0.16009168,75843.0,75842.0,0.003]
[1730995722034,0.06209168,75843.0,75842.0,0.003]
[1730995722734,0.06209168,75843.0,75838.0,0.004]
[1730995722956,0.005,75841.0,75838.0,0.004]
[1730995723185,0.005,75842.0,75841.0,0.004]
[1730995723396,0.005,75842.0,75838.0,0.0861]
[1730995723612,0.005,75842.0,75841.0,0.004]
[1730995723826,0.06009168,75843.0,75841.0,0.004]
[1730995724256,0.05609168,75843.0,75842.0,0.004]
[1730995724670,0.05509168,75843.0,75842.0,0.004]
[1730995725773,0.05509168,75843.0,75842.0,0.007]
[1730995726897,0.05509168,75843.0,75842.0,0.011]
[1730995727099,0.05509168,75843.0,75842.0,0.004]
[1730995727299,0.05509168,75843.0,75842.0,0.0866]
[1730995727513,0.05509168,75843.0,75842.0,0.0936]
[1730995727717,0.05509168,75843.0,75842.0,0.2371243]
[1730995727947,0.001666,75843.0,75842.0,0.2371243]
[1730995728149,0.001666,75843.0,75842.0,0.2471243]
[1730995728295,0.001666,75843.0,75842.0,0.2421243]
[1730995728643,0.001666,75843.0,75842.0,0.2391243]
[1730995728846,0.001666,75843.0,75842.0,0.2441243]
[1730995729055,0.001666,75843.0,75842.0,0.2521243]
[1730995729261,0.001666,75843.0,75842.0,0.35076104]
[1730995729466,0.001666,75843.0,75842.0,0.3481243]
[1730995729667,0.001666,75843.0,75842.0,0.3925089]
[1730995730083,0.001666,75843.0,75842.0,0.51474992]
[1730995730293,0.001666,75843.0,75842.0,0.52174992]
[1730995730499,0.001666,75843.0,75842.0,0.51774992]
[1730995730906,0.00364888,75851.0,75850.0,0.1149]
[1730995731116,0.19909308,75863.0,75862.0,0.0869]
[1730995731314,0.19909308,75863.0,75862.0,0.2454243]
[1730995731516,0.19810218,75863.0,75862.0,0.2906243]
[1730995731743,0.00167,75872.0,75870.0,0.0819]
[1730995731948,0.00167,75872.0,75870.0,0.2354243]
[1730995732195,0.00167,75872.0,75871.0,0.006]
[1730995732397,0.00167,75872.0,75871.0,0.004]
[1730995732599,0.00167,75872.0,75871.0,0.40480122]
[1730995732747,0.00167,75872.0,75871.0,0.40216532]
[1730995732950,0.00167,75872.0,75871.0,0.24864102]
[1730995733155,0.00167,75872.0,75871.0,0.40480084]
[1730995733358,0.037417,75877.0,75876.0,0.1691]
[1730995733556,0.19910168,75887.0,75886.0,0.0976]
[1730995733896,0.19910168,75887.0,75886.0,0.40636532]
[1730995734097,0.19810218,75895.0,75894.0,0.006]
[1730995734307,0.19810218,75895.0,75894.0,0.1595243]
[1730995734436,6e-05,75900.0,75899.0,0.006]
[1730995736953,6e-05,75900.0,75899.0,0.017]
[1730995737346,6e-05,75900.0,75899.0,0.0165]
[1730995737992,6e-05,75900.0,75899.0,0.1162]
[1730995738202,6e-05,75900.0,75899.0,0.27407568]
[1730995738420,6e-05,75900.0,75899.0,0.27144102]
[1730995738828,6e-05,75900.0,75899.0,0.1022]
[1730995739041,6e-05,75900.0,75899.0,0.25744102]
[1730995739254,6e-05,75900.0,75899.0,0.41096532]
[1730995739494,6e-05,75900.0,75899.0,0.39996532]
[1730995739980,6e-05,75900.0,75899.0,0.41196532]
[1730995740230,6e-05,75900.0,75899.0,0.58836532]
[1730995740475,6e-05,75900.0,75899.0,0.57436532]
[1730995740689,6e-05,75900.0,75899.0,0.60036532]
[1730995741173,6e-05,75900.0,75899.0,0.57436532]
[1730995741391,6e-05,75900.0,75899.0,0.58836532]
[1730995741615,6e-05,75900.0,75899.0,0.60036532]
[1730995741831,0.19810218,75913.0,75907.0,0.0155]
[1730995742078,0.19810218,75913.0,75907.0,0.62396532]
[1730995742523,0.0009893,75915.0,75907.0,0.62396532]
[1730995743003,0.0009893,75915.0,75907.0,0.72396532]
[1730995743225,0.0009893,75915.0,75907.0,0.47044102]
[1730995743460,0.0009893,75915.0,75907.0,0.62396532]
[1730995743931,0.0009893,75915.0,75907.0,0.63596532]
[1730995744155,0.0009893,75915.0,75907.0,0.70339601]
[1730995744391,0.0009893,75915.0,75907.0,0.68939601]
[1730995744627,0.000747,75919.0,75907.0,0.68939601]
[1730995744864,0.000747,75919.0,75918.0,0.0155]
[1730995745081,0.0009841,75923.0,75922.0,0.0385]
[1730995745340,0.19810218,75929.0,75926.0,0.0385]
[1730995745579,0.19810218,75929.0,75926.0,0.49866532]
[1730995745799,0.19810218,75937.0,75926.0,0.49866532]
[1730995747196,0.19810218,75937.0,75926.0,0.51266532]
[1730995747407,0.19810218,75937.0,75926.0,0.52466532]
[1730995747621,0.0009859,75938.0,75926.0,0.65461768]
[1730995747990,0.0009859,75938.0,75937.0,0.1143]
[1730995748198,0.0009859,75938.0,75937.0,0.57446532]
[1730995748399,0.19810218,75945.0,75938.0,0.0385]
[1730995748602,0.19810218,75945.0,75938.0,0.17074102]
[1730995748991,6e-05,75950.0,75938.0,0.17074102]
[1730995749250,6e-05,75950.0,75938.0,0.17337399]
[1730995749462,6e-05,75950.0,75938.0,0.32426532]
[1730995749880,6e-05,75950.0,75938.0,0.32769746]
[1730995750090,6e-05,75950.0,75938.0,0.32426532]
[1730995750313,6e-05,75950.0,75938.0,0.32769746]
[1730995750520,6e-05,75950.0,75942.0,0.0385]
[1730995750726,6e-05,75950.0,75942.0,0.49866532]
[1730995752030,0.001271,75943.0,75942.0,0.51266532]
[1730995752235,0.001271,75943.0,75942.0,0.63766532]
[1730995752639,6e-05,75950.0,75942.0,0.63766532]
[1730995752640,6e-05,75950.0,75947.0,0.0155]
[1730995752814,0.00084551,75959.0,75958.0,0.015]
[1730995753037,0.00084551,75959.0,75958.0,0.55509795]
[1730995753212,0.00084551,75959.0,75958.0,0.55246532]
[1730995753405,0.00084551,75959.0,75958.0,0.54246532]
[1730995753793,0.00084551,75959.0,75958.0,0.55296532]
[1730995753996,0.00084551,75959.0,75958.0,0.3319243]
[1730995754199,0.00084551,75959.0,75958.0,0.1784]
[1730995754422,0.00584551,75959.0,75958.0,0.1894]
[1730995754845,0.00634551,75959.0,75958.0,0.1854]
[1730995755060,0.005,75945.0,75942.0,0.004]
[1730995755277,0.0055,75945.0,75942.0,0.004]
[1730995755500,0.005,75945.0,75937.0,0.19810218]
[1730995755914,0.005,75945.0,75930.0,0.006]
[1730995755915,0.0499,75944.0,75932.0,0.005]
[1730995756121,0.005,75940.0,75932.0,0.005]
[1730995756320,0.005,75940.0,75929.0,0.1744]
[1730995756321,0.005,75940.0,75930.0,0.005]
[1730995756499,0.005,75937.0,75929.0,0.1744]
[1730995757272,0.005,75937.0,75932.0,0.01]
[1730995757475,0.005,75937.0,75929.0,0.1744]
[1730995757887,0.006,75937.0,75929.0,0.1874]
[1730995758107,0.005,75937.0,75929.0,0.1744]
[1730995758315,0.005,75935.0,75926.0,0.005]
[1730995758772,0.005,75935.0,75932.0,0.01]
[1730995759661,0.16410218,75941.0,75925.0,0.005]
[1730995759887,0.2963432,75941.0,75926.0,0.20310218]
[1730995760088,0.001,75937.0,75929.0,0.013]
[1730995760307,0.13224102,75941.0,75926.0,0.21673605]
[1730995760551,0.19810218,75940.0,75926.0,0.01863387]
[1730995760750,0.001,75935.0,75932.0,0.01]
[1730995760933,0.001,75935.0,75926.0,0.00763387]
[1730995761174,0.001,75935.0,75929.0,0.007]
[1730995761581,0.001,75937.0,75922.0,0.19810218]
[1730995761582,0.0005,75934.0,75922.0,0.19810218]
[1730995761783,0.0005,75934.0,75922.0,0.20573619]
[1730995762005,0.0005,75934.0,75921.0,0.1794]
[1730995762206,0.0005,75934.0,75926.0,0.011]
[1730995762858,0.0005,75935.0,75926.0,0.014]
[1730995763073,0.001,75937.0,75926.0,0.014]
[1730995763282,0.001,75937.0,75927.0,0.005]
[1730995763488,0.001,75937.0,75929.0,0.001]
[1730995763685,0.001,75937.0,75930.0,0.00263365]
[1730995763887,0.001,75937.0,75927.0,0.006]
[1730995763888,0.001,75937.0,75927.0,0.005]
[1730995764089,0.001,75937.0,75926.0,0.025]